fUSD/lending_fUSD_20240117
["ID","MTS","AMOUNT","RATE_DAILY","PERIOD"]
[311864469,1705477851815,-1737.95,0.00021917,2]
[311864470,1705477851826,-511.06510106,0.00021917,10]
[311864471,1705477851836,-500.0,0.00021917,2]
[311864472,1705477851845,-567.39,0.00021917,2]
[311864473,1705477851854,-1825.62,0.00021917,2]
[311864474,1705477851863,-1123.4,0.00021917,2]
[311864475,1705477851873,-1789.74,0.00021917,2]
[311864476,1705477851882,-500.0,0.00021917,2]
[311864477,1705477851892,-874.65,0.00021917,2]
[311864478,1705477851902,-640.99,0.00021917,2]
[311864479,1705477851912,-515.26,0.00021917,2]
[311864480,1705477851922,-500.0,0.00021917,2]
[311864481,1705477851931,-1931.47,0.00021917,2]
[311864482,1705477851940,-500.0,0.00021917,2]
[311864483,1705477851949,-1804.81,0.00021917,2]
[311864484,1705477851959,-505.3,0.00021917,2]
[311864485,1705477851967,-3793.63,0.00021917,5]
[311864486,1705477851977,-500.0,0.00021917,2]
[311864487,1705477851986,-520.33041099,0.00021917,2]
[311864488,1705477851995,-4529.48,0.00021917,2]
[311864489,1705477852005,-500.0,0.00021917,2]
[311864490,1705477852014,-1131.75,0.00021917,2]
[311864491,1705477852023,-1017.44,0.00021917,2]
[311864492,1705477852033,-3604.02,0.00021917,2]
[311864493,1705477852042,-500.0,0.00021917,2]
[311864494,1705477852051,-881.78,0.00021917,2]
[311864495,1705477852060,-762.35,0.00021917,2]
[311864496,1705477852069,-500.0,0.00021917,2]
[311864497,1705477852078,-500.0,0.00021917,2]
[311864498,1705477852088,-977.88,0.00021917,2]
[311864499,1705477852098,-1397.42,0.00021917,2]
[311864500,1705477852107,-504.47,0.00021917,2]
[311864501,1705477852116,-1998.87,0.00021917,2]
[311864502,1705477852125,-748.39,0.00021917,2]
[311864503,1705477852134,-541.46,0.00021917,2]
[311864504,1705477852143,-5499.99,0.00021917,2]
[311864505,1705477852154,-500.0,0.00021917,2]
[311864506,1705477852165,-803.17,0.00021917,2]
[311864507,1705477852174,-500.0,0.00021917,2]
[311864508,1705477852183,-1304.65,0.00021917,2]
[311864509,1705477852192,-500.0,0.00021917,2]
[311864510,1705477852202,-23687.96,0.00021917,2]
[311864511,1705477852211,-2127.0,0.00021917,2]
[311864512,1705477852220,-2124.62,0.00021917,2]
[311864513,1705477852230,-500.0,0.00021917,2]
[311864514,1705477852239,-508.14663712,0.00021917,2]
[311864515,1705477852249,-1079.73,0.00021917,2]
[311864516,1705477852258,-1065.49,0.00021917,2]
[311864517,1705477852268,-500.0,0.00021917,2]
[311864518,1705477852277,-1389.44,0.00021917,2]
[311864519,1705477852287,-500.0,0.00021917,2]
[311864520,1705477852296,-500.0,0.00021917,2]
[311864521,1705477852306,-1171.08,0.00021917,2]
[311864522,1705477852315,-3661.79,0.00021917,2]
[311864523,1705477852324,-557.58,0.00021917,2]
[311864524,1705477852334,-508.46805448,0.00021917,2]
[311864525,1705477852343,-4893.62,0.00021917,2]
[311864526,1705477852353,-7505.32,0.00021917,2]
[311864527,1705477852363,-1628.04,0.00021917,2]
[311864528,1705477852372,-500.0,0.00021917,2]
[311864529,1705477852382,-664.62,0.00021917,2]
[311864530,1705477852391,-500.0,0.00021917,2]
[311864531,1705477852401,-500.0,0.00021917,2]
[311864532,1705477852410,-500.0,0.00021917,2]
[311864533,1705477852420,-1766.54,0.00021917,2]
[311864534,1705477852429,-2559.72,0.00021917,2]
[311864535,1705477852439,-3757.71,0.00021917,2]
[311864536,1705477852448,-500.0,0.00021917,2]
[311864537,1705477852458,-512.41,0.00021917,2]
[311864538,1705477852467,-1098.37,0.00021917,2]
[311864539,1705477852477,-1000.0,0.00021917,2]
[311864540,1705477852486,-500.0,0.00021917,2]
[311864541,1705477852496,-31078.43,0.00021917,2]
[311864542,1705477852505,-2242.01,0.00021917,2]
[311864543,1705477852515,-511.21990164,0.00021917,2]
[311864544,1705477852524,-2784.43,0.00021917,2]
[311864545,1705477852533,-1425.39,0.00021917,2]
[311864546,1705477852543,-600.79,0.00021917,2]
[311864547,1705477852552,-1806.79,0.00021917,2]
[311864548,1705477852561,-500.0,0.00021917,2]
[311864549,1705477852570,-1648.74,0.00021917,2]
[311864550,1705477852580,-543.73,0.00021917,2]
[311864551,1705477852589,-500.0,0.00021917,2]
[311864552,1705477852599,-2052.7,0.00021917,2]
[311864553,1705477852609,-582.21,0.00021917,2]
[311864554,1705477852618,-520.09440353,0.00021917,2]
[311864555,1705477852628,-1778.83,0.00021917,2]
[311864556,1705477852637,-500.0,0.00021917,2]
[311864557,1705477852646,-500.0,0.00021917,2]
[311864558,1705477852657,-1275.74,0.00021917,2]
[311864559,1705477852666,-532.42,0.00021917,2]
[311864560,1705477852675,-2275.89,0.00021917,2]
[311864561,1705477852685,-500.0,0.00021917,2]
[311864562,1705477852694,-500.0,0.00021917,2]
[311864563,1705477852704,-500.0,0.00021917,2]
[311864564,1705477852713,-1579.67,0.00021917,2]
[311864565,1705477852723,-500.0,0.00021917,2]
[311864566,1705477852732,-868.22,0.00021917,2]
[311864567,1705477852743,-500.0,0.00021917,2]
[311864568,1705477852754,-500.0,0.00021917,2]
[311864569,1705477852764,-500.0,0.00021917,2]
[311864570,1705477852773,-500.0,0.00021917,2]
[311864571,1705477852782,-2855.59,0.00021917,2]
[311864572,1705477852793,-910.19,0.00021917,2]
[311864573,1705477852802,-500.0,0.00021917,2]
[311864574,1705477852811,-4398.84,0.00021917,2]
[311864575,1705477852821,-504.81791562,0.00021917,2]
[311864576,1705477852831,-3136.33,0.00021917,2]
[311864577,1705477852841,-500.0,0.00021917,2]
[311864578,1705477852850,-500.0,0.00021917,2]
[311864579,1705477852859,-500.0,0.00021917,2]
[311864580,1705477852868,-1003.72,0.00021917,2]
[311864581,1705477852878,-2311.82,0.00021917,2]
[311864582,1705477852887,-300.0,0.00021917,2]
[311864583,1705477852896,-1135.9,0.00021917,2]
[311864584,1705477852905,-511.28,0.00021917,2]
[311864585,1705477852915,-4905.61,0.00021917,2]
[311864586,1705477852924,-500.0,0.00021917,2]
[311864587,1705477852934,-1396.49,0.00021917,2]
[311864588,1705477852943,-1777.91,0.00021917,2]
[311864589,1705477852952,-500.0,0.00021917,2]
[311864590,1705477852961,-468.29370821,0.00021917,2]
[311864591,1705477852971,-500.0,0.00021917,2]
[311864592,1705477852980,-1545.11,0.00021917,2]
[311864593,1705477852989,-2402.18,0.00021917,2]
[311864594,1705477852998,-500.0,0.00021917,2]
[311864595,1705477853008,-2054.54,0.00021917,2]
[311864596,1705477853017,-500.0,0.00021917,2]
[311864597,1705477853026,-727.64,0.00021917,2]
[311864598,1705477853036,-500.0,0.00021917,2]
[311864599,1705477853045,-500.0,0.00021917,2]
[311864600,1705477853054,-519.28,0.00021917,2]
[311864601,1705477853064,-2741.31,0.00021917,2]
[311864602,1705477853073,-500.0,0.00021917,2]
[311864603,1705477853082,-1325.6,0.00021917,2]
[311864604,1705477853091,-500.0,0.00021917,2]
[311864605,1705477853100,-500.0,0.00021917,2]
[311864606,1705477853109,-3840.67,0.00021917,2]
[311864607,1705477853119,-1560.22,0.00021917,2]
[311864608,1705477853128,-500.0,0.00021917,2]
[311864609,1705477853138,-500.0,0.00021917,2]
[311864610,1705477853147,-1467.37,0.00021917,2]
[311864611,1705477853157,-772.21,0.00021917,2]
[311864612,1705477853167,-1905.2,0.00021917,2]
[311864613,1705477853176,-500.0,0.00021917,2]
[311864614,1705477853185,-1659.38,0.00021917,2]
[311864615,1705477853194,-500.0,0.00021917,2]
[311864616,1705477853203,-500.0,0.00021917,2]
[311864617,1705477853213,-3063.24,0.00021917,2]
[311864618,1705477853222,-504.21,0.00021917,2]
[311864619,1705477853232,-500.0,0.00021917,2]
[311864620,1705477853241,-500.0,0.00021917,2]
[311864621,1705477853251,-671.17,0.00021917,2]
[311864622,1705477853260,-500.0,0.00021917,2]
[311864623,1705477853270,-500.0,0.00021917,2]
[311864624,1705477853279,-3795.1,0.00021917,2]
[311864625,1705477853288,-500.0,0.00021917,2]
[311864626,1705477853298,-581.03,0.00021917,2]
[311864627,1705477853307,-1465.57,0.00021917,2]
[311864628,1705477853317,-549.75,0.00021917,2]
[311864629,1705477853327,-500.0,0.00021917,2]
[311864630,1705477853337,-5542.0,0.00021917,2]
[311864631,1705477853346,-500.0,0.00021917,2]
[311864632,1705477853355,-739.85,0.00021917,2]
[311864633,1705477853365,-500.0,0.00021917,2]
[311864634,1705477853374,-545.33,0.00021917,2]
[311864635,1705477853384,-500.0,0.00021917,2]
[311864636,1705477853393,-500.0,0.00021917,2]
[311864637,1705477853404,-542.7,0.00021917,2]
[311864638,1705477853413,-500.0,0.00021917,2]
[311864639,1705477853422,-2975.48,0.00021917,2]
[311864640,1705477853432,-1946.01,0.00021917,2]
[311864641,1705477853441,-500.0,0.00021917,2]
[311864642,1705477853450,-500.0,0.00021917,2]
[311864643,1705477853459,-1301.53,0.00021917,2]
[311864644,1705477853469,-824.61,0.00021917,2]
[311864645,1705477853478,-733.51,0.00021917,2]
[311864646,1705477853488,-3708.13,0.00021917,2]
[311864647,1705477853497,-969.84,0.00021917,2]
[311864648,1705477853507,-506.34485994,0.00021917,2]
[311864649,1705477853516,-928.3,0.00021917,2]
[311864650,1705477853526,-1000.0,0.00021917,7]
[311864651,1705477853535,-500.0,0.00021917,2]
[311864652,1705477853545,-500.0,0.00021917,2]
[311864653,1705477853554,-3722.54,0.00021917,5]
[311864654,1705477853563,-838.91,0.00021917,2]
[311864655,1705477853573,-1051.94,0.00021917,2]
[311864656,1705477853583,-283.25,0.00021924,2]
[311864657,1705477853593,-150.61,0.00021939,2]
[311864658,1705477853603,-156.64,0.00021954,2]
[311864659,1705477853613,-301.87006797,0.00021959,2]
[311864660,1705477853623,-250.0,0.00022,2]
[311864661,1705477853632,-250.0,0.00022,2]
[311864662,1705477853642,-250.0,0.00022,2]
[311864663,1705477853652,-250.0,0.00022,2]
[311864664,1705477853661,-250.0,0.00022,2]
[311864665,1705477853671,-250.0,0.00022,2]
[311864666,1705477853681,-269.3,0.00022,2]
[311864667,1705477853691,-283.25,0.00022037,2]
[311864668,1705477853701,-1401.15745974,0.00022091,2]
[311864669,1705477853710,-679.32378252,0.00022091,2]
[311864670,1705477853719,-382.46578036,0.00022091,2]
[311864671,1705477853729,-6196.11216425,0.000221,2]
[311864672,1705477853740,-747.89331272,0.00022115,2]
[311864673,1705477853751,-747.89331272,0.00022115,2]
[311864674,1705477853761,-283.25,0.00022151,2]
[311864675,1705477853771,-694.44684133,0.00022189,2]
[311864676,1705477853780,-232.90118502,0.00022189,2]
[311864677,1705477853790,-155.32990661,0.00022189,2]
[311864678,1705477853800,-267.82291983,0.00022189,2]
[311864679,1705477853810,-500.0,0.0002219,2]
[311864680,1705477853819,-500.0,0.0002219,2]
[311864681,1705477853829,-913.39,0.0002219,2]
[311864682,1705477853839,-500.0,0.0002219,2]
[311864683,1705477853848,-500.0,0.0002219,2]
[311864684,1705477853857,-500.0,0.0002219,2]
[311864685,1705477853866,-610.78274166,0.0002219,2]
[311864686,1705477853875,-500.0,0.0002219,2]
[311864687,1705477853885,-973.32,0.0002219,2]
[311864688,1705477853894,-217.70010707,0.0002219,2]
[311864689,1705477853991,-500.0,0.0002219,2]
[311864690,1705477854000,-500.0,0.0002219,2]
[311864691,1705477854009,-847.63,0.0002219,2]
[311864692,1705477854018,-718.4,0.0002219,2]
[311864693,1705477854027,-500.0,0.0002219,2]
[311864694,1705477854036,-500.0,0.0002219,2]
[311864695,1705477854045,-500.0,0.0002219,2]
[311864696,1705477854054,-500.0,0.0002219,2]
[311864697,1705477854063,-500.0,0.0002219,2]
[311864698,1705477854072,-500.0,0.0002219,2]
[311864699,1705477854081,-556.91104573,0.0002219,2]
[311864700,1705477854090,-500.0,0.0002219,2]
[311864701,1705477854098,-771.2,0.0002219,2]
[311864702,1705477854107,-500.0,0.0002219,2]
[311864703,1705477854116,-500.0,0.0002219,2]
[311864704,1705477854125,-500.0,0.0002219,2]
[311864705,1705477854134,-500.0,0.0002219,2]
[311864706,1705477854143,-973.21,0.0002219,2]
[311864707,1705477854153,-500.0,0.0002219,2]
[311864708,1705477854163,-514.00334673,0.0002219,2]
[311864709,1705477854172,-500.0,0.0002219,2]
[311864710,1705477854181,-500.0,0.0002219,2]
[311864711,1705477854190,-500.0,0.0002219,2]
[311864712,1705477854199,-500.0,0.0002219,2]
[311864713,1705477854208,-1691.86,0.0002219,2]
[311864714,1705477854217,-502.05259813,0.0002219,2]
[311864715,1705477854225,-1000.0,0.0002219,2]
[311864716,1705477854234,-500.0,0.0002219,2]
[311864717,1705477854243,-500.0,0.0002219,2]
[311864718,1705477854252,-505.71665646,0.0002219,2]
[311864719,1705477854261,-552.82,0.0002219,2]
[311864720,1705477854270,-500.0,0.0002219,2]
[311864721,1705477854279,-720.87,0.0002219,2]
[311864722,1705477854288,-500.0,0.0002219,2]
[311864723,1705477854297,-500.0,0.0002219,2]
[311864724,1705477854306,-817.69,0.0002219,2]
[311864725,1705477854315,-500.0,0.0002219,2]
[311864726,1705477854324,-947.7,0.0002219,2]
[311864727,1705477854334,-1387.12,0.0002219,2]
[311864728,1705477854343,-692.13,0.0002219,2]
[311864729,1705477854353,-1012.78,0.0002219,2]
[311864730,1705477854362,-500.0,0.0002219,2]
[311864731,1705477854372,-500.0,0.0002219,2]
[311864732,1705477854381,-500.0,0.0002219,2]
[311864733,1705477854390,-500.0,0.0002219,2]
[311864734,1705477854400,-927.6,0.0002219,2]
[311864735,1705477854409,-500.0,0.0002219,2]
[311864736,1705477854418,-542.05,0.0002219,2]
[311864737,1705477854427,-500.0,0.0002219,2]
[311864738,1705477854436,-500.0,0.0002219,2]
[311864739,1705477854446,-500.0,0.0002219,2]
[311864740,1705477854454,-500.0,0.0002219,2]
[311864741,1705477854463,-500.0,0.0002219,2]
[311864742,1705477854473,-738.2,0.0002219,2]
[311864743,1705477854482,-651.04,0.0002219,2]
[311864744,1705477854491,-500.0,0.0002219,2]
[311864745,1705477854500,-962.98,0.0002219,2]
[311864746,1705477854509,-518.31,0.0002219,2]
[311864747,1705477854518,-452.12518647,0.0002219,2]
[311864748,1705477854527,-500.0,0.0002219,2]
[311864749,1705477854536,-500.0,0.0002219,2]
[311864750,1705477854545,-881.97,0.0002219,2]
[311864751,1705477854555,-500.0,0.0002219,2]
[311864752,1705477854563,-500.0,0.0002219,2]
[311864753,1705477854573,-819.28,0.0002219,2]
[311864754,1705477854582,-743.01,0.0002219,2]
[311864755,1705477854591,-500.0,0.0002219,2]
[311864756,1705477854600,-500.0,0.0002219,2]
[311864757,1705477854609,-500.0,0.0002219,2]
[311864758,1705477854619,-500.0,0.0002219,2]
[311864759,1705477854627,-500.0,0.0002219,2]
[311864760,1705477854637,-823.77,0.0002219,2]
[311864761,1705477854645,-518.65506847,0.0002219,2]
[311864762,1705477854655,-880.93,0.0002219,2]
[311864763,1705477854664,-500.0,0.0002219,2]
[311864764,1705477854673,-500.0,0.0002219,2]
[311864765,1705477854682,-883.1,0.0002219,2]
[311864766,1705477854691,-735.27,0.0002219,2]
[311864767,1705477854700,-1168.49,0.0002219,2]
[311864768,1705477854710,-500.0,0.0002219,2]
[311864769,1705477854718,-665.76,0.0002219,2]
[311864770,1705477854727,-500.0,0.0002219,2]
[311864771,1705477854737,-500.0,0.0002219,2]
[311864772,1705477854748,-769.34,0.0002219,2]
[311864773,1705477854758,-500.00059054,0.0002219,2]
[311864774,1705477854767,-500.0,0.0002219,2]
[311864775,1705477854777,-510.65250854,0.0002219,2]
[311864776,1705477854786,-500.0,0.0002219,2]
[311864777,1705477854796,-500.0,0.0002219,2]
[311864778,1705477854805,-500.0,0.0002219,2]
[311864779,1705477854815,-500.0,0.0002219,2]
[311864780,1705477854826,-500.0,0.0002219,2]
[311864781,1705477854837,-500.0,0.0002219,2]
[311864782,1705477854847,-500.0,0.0002219,2]
[311864783,1705477854856,-500.0,0.0002219,2]
[311864784,1705477854867,-829.28,0.0002219,2]
[311864785,1705477854878,-822.84,0.0002219,2]
[311864786,1705477854889,-500.0,0.0002219,2]
[311864787,1705477854899,-500.0,0.0002219,2]
[311864788,1705477854916,-500.0,0.0002219,2]
[311864789,1705477854927,-500.0,0.0002219,2]
[311864790,1705477854936,-500.0,0.0002219,2]
[311864791,1705477854946,-523.92791916,0.0002219,2]
[311864792,1705477854955,-500.0,0.0002219,2]
[311864793,1705477854964,-500.0,0.0002219,2]
[311864794,1705477854973,-593.76,0.0002219,2]
[311864795,1705477854982,-500.0,0.0002219,2]
[311864796,1705477854991,-809.84,0.0002219,2]
[311864797,1705477855000,-500.0,0.0002219,2]
[311864798,1705477855009,-1251.86,0.0002219,2]
[311864799,1705477855019,-657.56,0.0002219,2]
[311864800,1705477855028,-500.0,0.0002219,2]
[311864801,1705477855038,-500.0,0.0002219,2]
[311864802,1705477855047,-500.0,0.0002219,2]
[311864803,1705477855056,-500.0,0.0002219,2]
[311864804,1705477855065,-500.0,0.0002219,2]
[311864805,1705477855074,-500.0,0.0002219,2]
[311864806,1705477855084,-838.98,0.0002219,2]
[311864807,1705477855093,-1007.77,0.0002219,2]
[311864808,1705477855102,-755.45,0.0002219,2]
[311864809,1705477855111,-500.0,0.0002219,2]
[311864810,1705477855120,-500.0,0.0002219,2]
[311864811,1705477855129,-662.62,0.0002219,2]
[311864812,1705477855138,-500.0,0.0002219,2]
[311864813,1705477855147,-500.0,0.0002219,2]
[311864814,1705477855159,-500.0,0.0002219,2]
[311864815,1705477855169,-453.70340503,0.0002219,2]
[311864816,1705477855178,-500.0,0.0002219,2]
[311864817,1705477855192,-642.37,0.0002219,2]
[311864818,1705477855201,-500.0,0.0002219,2]
[311864819,1705477855210,-500.0,0.0002219,2]
[311864820,1705477855220,-500.0,0.0002219,2]
[311864821,1705477855229,-500.0,0.0002219,2]
[311864822,1705477855238,-500.0,0.0002219,2]
[311864823,1705477855247,-500.0,0.0002219,2]
[311864824,1705477855257,-500.0,0.0002219,2]
[311864825,1705477855266,-500.0,0.0002219,2]
[311864826,1705477855275,-500.0,0.0002219,2]
[311864827,1705477855285,-500.0,0.0002219,2]
[311864828,1705477855295,-609.71,0.0002219,2]
[311864829,1705477855305,-719.24,0.0002219,2]
[311864830,1705477855314,-500.0,0.0002219,2]
[311864831,1705477855323,-500.0,0.0002219,2]
[311864832,1705477855333,-500.0,0.0002219,2]
[311864833,1705477855342,-500.0,0.0002219,2]
[311864834,1705477855352,-500.0,0.0002219,2]
[311864835,1705477855361,-1364.17,0.0002219,2]
[311864836,1705477855370,-651.13,0.0002219,2]
[311864837,1705477855383,-500.0,0.0002219,2]
[311864838,1705477855393,-500.0,0.0002219,2]
[311864839,1705477855403,-500.0,0.0002219,2]
[311864840,1705477855413,-500.0,0.0002219,2]
[311864841,1705477855422,-500.0,0.0002219,2]
[311864842,1705477855431,-500.0,0.0002219,2]
[311864843,1705477855440,-500.0,0.0002219,2]
[311864844,1705477855449,-578.54,0.0002219,2]
[311864845,1705477855459,-500.0,0.0002219,2]
[311864846,1705477855468,-651.77,0.0002219,2]
[311864847,1705477855478,-506.25946962,0.0002219,2]
[311864848,1705477855487,-764.76,0.0002219,2]
[311864849,1705477855497,-530.09807033,0.00022191,2]
[311864850,1705477855506,-527.2185859,0.00022191,2]
[311864851,1705477855516,-500.0,0.00022191,2]
[311864852,1705477855525,-500.0,0.00022191,2]
[311864853,1705477855534,-500.0,0.00022191,2]
[311864854,1705477855543,-500.0,0.00022191,2]
[311864855,1705477855553,-228.32039903,0.00022191,2]
[311864856,1705477855562,-500.0,0.00022191,2]
[311864857,1705477855572,-500.0,0.00022191,2]
[311864858,1705477855581,-500.0,0.00022191,2]
[311864859,1705477855591,-598.07,0.00022191,2]
[311864860,1705477855600,-500.0,0.00022191,2]
[311864861,1705477855609,-500.0,0.00022191,2]
[311864862,1705477855619,-579.11,0.00022191,2]
[311864863,1705477855627,-500.0,0.00022191,2]
[311864864,1705477855637,-541.55,0.00022191,2]
[311864865,1705477855647,-213.33333626,0.00022191,2]
[311864866,1705477855658,-500.0,0.00022191,2]
[311864867,1705477855667,-500.0,0.00022191,2]
[311864868,1705477855676,-500.0,0.00022191,2]
[311864869,1705477855686,-500.0,0.00022191,2]
[311864870,1705477855695,-500.0,0.00022191,2]
[311864871,1705477855704,-500.0,0.00022191,2]
[311864872,1705477855713,-175.90050338,0.00022191,2]
[311864873,1705477855723,-500.0,0.00022191,2]
[311864874,1705477855733,-500.0,0.00022191,2]
[311864875,1705477855743,-526.97,0.00022191,2]
[311864876,1705477855756,-500.0,0.00022191,2]
[311864877,1705477855765,-500.0,0.00022191,2]
[311864878,1705477855774,-500.0,0.00022191,2]
[311864879,1705477855784,-645.97,0.00022191,2]
[311864880,1705477855794,-663.68,0.00022191,2]
[311864881,1705477855803,-500.0,0.00022191,2]
[311864882,1705477855812,-721.97,0.00022191,2]
[311864883,1705477855822,-500.0,0.00022191,2]
[311864884,1705477855832,-500.0,0.00022191,2]
[311864885,1705477855841,-500.0,0.00022191,2]
[311864886,1705477855851,-500.0,0.00022191,2]
[311864887,1705477855859,-500.0,0.00022191,2]
[311864888,1705477855868,-500.0,0.00022191,2]
[311864889,1705477855877,-500.0,0.00022191,2]
[311864890,1705477855887,-527.20380791,0.00022191,2]
[311864891,1705477855896,-500.0,0.00022191,2]
[311864892,1705477855907,-500.0,0.00022191,2]
[311864893,1705477855916,-589.05,0.00022191,2]
[311864894,1705477855926,-500.0,0.00022191,2]
[311864895,1705477855936,-500.0,0.00022191,2]
[311864896,1705477855946,-666.97,0.00022191,2]
[311864897,1705477855955,-506.513918,0.00022191,2]
[311864898,1705477855964,-554.98470763,0.00022191,2]
[311864899,1705477855974,-500.0,0.00022191,2]
[311864900,1705477855984,-500.0,0.00022191,2]
[311864901,1705477855994,-594.13,0.00022191,2]
[311864902,1705477856003,-500.0,0.00022191,2]
[311864903,1705477856012,-500.0,0.00022191,2]
[311864904,1705477856022,-500.0,0.00022191,2]
[311864905,1705477856031,-500.0,0.00022191,2]
[311864906,1705477856041,-500.0,0.00022191,2]
[311864907,1705477856050,-500.0,0.00022191,2]
[311864908,1705477856059,-500.0,0.00022191,2]
[311864909,1705477856069,-500.0,0.00022191,2]
[311864910,1705477856078,-500.0,0.00022191,2]
[311864911,1705477856088,-500.0,0.00022191,2]
[311864912,1705477856097,-662.02,0.00022191,2]
[311864913,1705477856106,-500.0,0.00022191,2]
[311864914,1705477856115,-500.0,0.00022191,2]
[311864915,1705477856125,-500.0,0.00022191,2]
[311864916,1705477856134,-699.96,0.00022191,2]
[311864917,1705477856143,-500.0,0.00022191,2]
[311864918,1705477856154,-500.0,0.00022191,2]
[311864919,1705477856163,-880.69,0.00022191,2]
[311864920,1705477856172,-501.93875892,0.00022191,2]
[311864921,1705477856181,-500.0,0.00022191,2]
[311864922,1705477856190,-500.0,0.00022191,2]
[311864923,1705477856200,-500.0,0.00022191,2]
[311864924,1705477856209,-500.0,0.00022191,2]
[311864925,1705477856218,-500.0,0.00022191,2]
[311864926,1705477856228,-500.0,0.00022191,2]
[311864927,1705477856237,-500.0,0.00022191,2]
[311864928,1705477856247,-500.0,0.00022191,2]
[311864929,1705477856257,-500.0,0.00022191,2]
[311864930,1705477856266,-578.94,0.00022191,2]
[311864931,1705477856276,-500.0,0.00022191,2]
[311864932,1705477856285,-503.60630839,0.00022191,2]
[311864933,1705477856295,-500.0,0.00022191,2]
[311864934,1705477856304,-550.1,0.00022191,2]
[311864935,1705477856314,-500.0,0.00022191,2]
[311864936,1705477856323,-500.0,0.00022191,2]
[311864937,1705477856332,-500.0,0.00022191,2]
[311864938,1705477856342,-844.6,0.00022191,2]
[311864939,1705477856352,-500.0,0.00022191,2]
[311864940,1705477856362,-500.0,0.00022191,2]
[311864941,1705477856372,-500.0,0.00022191,2]
[311864942,1705477856382,-500.0,0.00022191,2]
[311864943,1705477856392,-500.0,0.00022191,2]
[311864944,1705477856403,-1263.61,0.00022191,2]
[311864945,1705477856413,-500.0,0.00022191,2]
[311864946,1705477856421,-500.0,0.00022191,2]
[311864947,1705477856430,-500.0,0.00022191,2]
[311864948,1705477856439,-1132.4,0.00022191,2]
[311864949,1705477856448,-500.0,0.00022191,2]
[311864950,1705477856457,-1281.36,0.00022191,2]
[311864951,1705477856465,-500.0,0.00022191,2]
[311864952,1705477856475,-500.0,0.00022191,2]
[311864953,1705477856484,-500.0,0.00022191,2]
[311864954,1705477856493,-500.0,0.00022191,2]
[311864955,1705477856503,-500.0,0.00022191,2]
[311864956,1705477856512,-671.9,0.00022191,2]
[311864957,1705477856522,-574.93,0.00022191,2]
[311864958,1705477856531,-791.05,0.00022191,2]
[311864959,1705477856540,-500.0,0.00022191,2]
[311864960,1705477856551,-500.0,0.00022191,2]
[311864961,1705477856560,-566.71,0.00022191,2]
[311864962,1705477856570,-500.0,0.00022191,2]
[311864963,1705477856579,-500.0,0.00022191,2]
[311864964,1705477856588,-933.38,0.00022191,2]
[311864965,1705477856599,-500.0,0.00022191,2]
[311864966,1705477856609,-259.33180592,0.00022191,2]
[311864967,1705477856619,-1433.81,0.00022191,2]
[311864968,1705477856628,-785.23,0.00022191,2]